[Event "36th Indian-ch U13 Open 2023"]
[Site "Secunderabad"]
[Date "2023.12.06"]
[Round "5.10"]
[White "Abheek Bhatt"]
[Black "Gaikwad Manas"]
[Result "0-1"]
[ECO "B23"]
[WhiteElo "1589"]
[BlackElo "1916"]
[Annotator "RC"]
[PlyCount "154"]
[EventDate "2023.12.04"]
[EventType "swiss"]
[EventCountry "IND"]
[SourceTitle "playchess.com"]
[Source "ChessBase"]
[SourceQuality "1"]
[TimeControl "5400+30"]

1. e4 {[%emt 0:00:03]} c5 {[%emt 0:00:08]} 2. Nc3 {[%emt 0:00:05]} a6 {[%emt 0:00:08]} 3. g3 {[%emt 0:00:07]} b5 {[%emt 0:00:06]} 4. Bg2 {[%emt 0:00:09]} Bb7 {[%emt 0:00:06]} 5. Nge2 {[%emt 0:00:11]} e6 {[%emt 0:00:04]} 6. d3 {[%emt 0:01:04]} Nf6 {[%emt 0:01:35]} 7. h3 {[%emt 0:00:28]} Be7 {[%emt 0:03:19]} 8. O-O {[%emt 0:03:59]} d5 {[%emt 0:02:20]} 9. exd5 {[%emt 0:06:50]} Nxd5 {[%emt 0:00:32]} 10. Ne4 {[%emt 0:00:21]} Nc6 {[%emt 0:03:11]} 11. d4 {[%emt 0:06:52]} cxd4 {[%emt 0:04:24]} 12. Nxd4 {[%emt 0:00:50]} Rc8 {[%emt 0:00:45]} 13. b3 {[%emt 0:11:05]} O-O {[%emt 0:28:21]} 14. Bb2 {[%emt 0:08:17]} b4 {[%emt 0:11:13]} 15. Qg4 {[%emt 0:13:55]} Nxd4 {[%emt 0:07:41]} 16. Bxd4 {[%emt 0:01:21]} g6 {[%emt 0:00:31]} 17. Qd1 {[%emt 0:02:10]} Qc7 {[%emt 0:06:24]} 18. Rc1 {[%emt 0:04:15]} Rfd8 {[%emt 0:01:48]} 19. Qf3 {[%emt 0:09:26]} f5 {[%emt 0:14:53]} 20. Nd2 {[%emt 0:03:51]} Nc3 {[%emt 0:01:14]} 21. Qd5 {[%emt 0:25:41]} Bc6 22. Qxc6 {[%emt 0:00:00]} Rd5 {[%emt 0:12:47]} 23. Qb7 Rxd4 {[%emt 0:00:00]} 24. Nc4 {[%emt 0:00:00]} Ne2+ {[%emt 0:00:00]} 25. Kh1 {[%emt 0:00:00]} Nxc1 {[%emt 0:00:00]} 26. Rxc1 {[%emt 0:00:00]} Qxb7 {[%emt 0:00:00]} 27. Bxb7 {[%emt 0:00:00]} Rcd8 {[%emt 0:00:00]} 28. Bf3 {[%emt 0:00:00]} Bf6 {[%emt 0:00:00]} 29. Kg2 {[%emt 0:00:00]} R4d7 {[%emt 0:00:00]} 30. Na5 {[%emt 0:00:00]} Bc3 {[%emt 0:00:00]} 31. Be2 {[%emt 0:00:00]} Rd2 {[%emt 0:00:00]} 32. Bd3 {[%emt 0:00:00]} R8xd3 {[%emt 0:00:00]} 33. cxd3 {[%emt 0:00:00]} Rxa2 {[%emt 0:00:00]} 34. Nc6 {[%emt 0:00:00]} a5 {[%emt 0:01:51]} 35. Kf3 {[%emt 0:00:00]} a4 {[%emt 0:00:26]} 36. bxa4 {[%emt 0:00:00]} Rxa4 {[%emt 0:00:01]} 37. Ke3 {[%emt 0:00:00]} Kf7 {[%emt 0:03:23]} 38. Nd4 {[%emt 0:00:00]} Ra5 {[%emt 0:00:34]} 39. Nf3 {[%emt 0:02:11]} Kf6 {[%emt 0:00:30]} 40. Rb1 {[%emt 0:02:01]} e5 {[%emt 0:00:19]} 41. Rc1 {[%emt 0:01:46]} g5 {[%emt 0:00:28]} 42. d4 {[%emt 0:00:50]} e4 {[%emt 0:00:13]} 43. Ne5 {[%emt 0:00:50]} Rd5 {[%emt 0:01:04]} 44. Nc6 {[%emt 0:01:37]} Rd6 {[%emt 0:00:02]} 45. Nxb4 {[%emt 0:00:06]} Bxb4 {[%emt 0:00:27]} 46. g4 {[%emt 0:00:22]} Re6 {[%emt 0:01:54]} 47. gxf5 {[%emt 0:00:22]} Kxf5 {[%emt 0:00:01]} 48. Rc7 {[%emt 0:00:44]} Rh6 {[%emt 0:00:18]} 49. Rf7+ {[%emt 0:00:32]} Ke6 {[%emt 0:00:07]} 50. Rb7 {[%emt 0:00:08]} Rxh3+ {[%emt 0:00:06]} 51. Kxe4 {[%emt 0:00:05]} Rh4+ {[%emt 0:00:05]} 52. Kd3 {[%emt 0:01:28]} Bd6 {[%emt 0:00:02]} 53. Rb5 {[%emt 0:00:33]} Rg4 {[%emt 0:00:38]} 54. f3 {[%emt 0:00:31]} Rg1 {[%emt 0:00:09]} 55. Ke3 {[%emt 0:00:33]} Bf4+ {[%emt 0:00:23]} 56. Kf2 {[%emt 0:00:32]} Rd1 {[%emt 0:00:06]} 57. Rb6+ {[%emt 0:00:50]} Kf7 {[%emt 0:00:07]} 58. Rb4 {[%emt 0:00:14]} h5 {[%emt 0:00:06]} 59. Ra4 {[%emt 0:00:55]} Rd2+ {[%emt 0:00:17]} 60. Kf1 {[%emt 0:00:06]} h4 {[%emt 0:00:02]} 61. Ra7+ {[%emt 0:00:16]} Ke6 {[%emt 0:00:04]} 62. Rh7 {[%emt 0:00:15]} Rxd4 {[%emt 0:00:11]} 63. Rh6+ {[%emt 0:00:23]} Kf5 {[%emt 0:00:06]} 64. Rh7 {[%emt 0:00:19]} Bg3 {[%emt 0:00:16]} 65. Rh8 {[%emt 0:00:34]} Rd2 {[%emt 0:00:12]} 66. Kg1 {[%emt 0:00:32]} Bd6 {[%emt 0:00:25]} 67. Rh7 {[%emt 0:00:33]} Kf4 {[%emt 0:00:01]} 68. Rf7+ {[%emt 0:00:25]} Kg3 {[%emt 0:00:02]} 69. Kf1 {[%emt 0:00:06]} h3 {[%emt 0:00:03]} 70. Ke1 {[%emt 0:00:07]} Ra2 {[%emt 0:00:10]} 71. f4 {[%emt 0:00:18]} Bxf4 {[%emt 0:00:08]} 72. Rh7 {[%emt 0:00:41]} h2 {[%emt 0:00:05]} 73. Kf1 {[%emt 0:00:06]} g4 {[%emt 0:00:05]} 74. Ke1 {[%emt 0:00:11]} Kf3 {[%emt 0:00:05]} 75. Kd1 {[%emt 0:00:07]} g3 {[%emt 0:00:03]} 76. Rh3 {[%emt 0:00:12]} Kg4 {[%emt 0:00:15]} 77. Rh7 {[%emt 0:00:16]} g2 {[%emt 0:00:05]} 0-1

[Event "36th Indian-ch U13 Open 2023"]
[Site "Secunderabad"]
[Date "2023.12.07"]
[Round "6.1"]
[White "Mrinmoy Rajkhowa"]
[Black "Chinmay Kowshik"]
[Result "1-0"]
[ECO "C50"]
[WhiteElo "1840"]
[BlackElo "1761"]
[Annotator "NA RC"]
[PlyCount "109"]
[EventDate "2023.12.04"]
[EventType "swiss"]
[EventCountry "IND"]
[SourceTitle "playchess.com"]
[Source "ChessBase"]
[SourceQuality "1"]
[TimeControl "5400+30"]

1. e4 {[%emt 0:00:07]} e5 {[%emt 0:00:06]} 2. Nf3 {[%emt 0:00:04]} Nc6 {[%emt 0:00:04]} 3. Bc4 {[%emt 0:00:04]} Bc5 {[%emt 0:00:06]} 4. d3 {[%emt 0:00:05]} Nf6 {[%emt 0:00:05]} 5. Bg5 {[%emt 0:00:21]} O-O {[%emt 0:00:47]} 6. Nc3 {[%emt 0:05:10]} Be7 {[%emt 0:00:11]} 7. Bxf6 {[%emt 0:03:15]} Bxf6 {[%emt 0:00:06]} 8. Nd5 {[%emt 0:00:12]} Na5 {[%emt 0:01:57]} 9. Qd2 {[%emt 0:01:14]} Nxc4 {[%emt 0:01:53]} 10. dxc4 {[%emt 0:00:03]} d6 {[%emt 0:00:14]} 11. O-O-O {[%emt 0:00:06]} g6 {[%emt 0:07:20]} 12. Rhg1 {[%emt 0:10:30]} Bg4 {[%emt 0:10:43]} 13. Qd3 {[%emt 0:19:23]} Bg7 $11 {[%emt 0:10:18]} (13... c6 $5 {[%cal Rc6d5]} 14. Nxf6+ Qxf6 $11) 14. h3 {[%emt 0:01:15]} Bxf3 {[%emt 0:00:32]} 15. Qxf3 {[%emt 0:00:21]} f5 {[%emt 0:14:18]} 16. Qb3 {[%emt 0:07:20]} Rb8 {[%emt 0:01:28]} 17. c5 {[%emt 0:04:23]} Kh8 {[%emt 0:00:17]} 18. cxd6 {[%emt 0:02:15]} Qxd6 {[%emt 0:01:06]} 19. f3 {[%emt 0:09:48]} Qc5 {[%emt 0:16:03]} 20. Qc3 {[%emt 0:11:20]} Qxc3 {[%emt 0:00:58]} 21. Nxc3 {[%emt 0:00:07]} Rbd8 {[%emt 0:02:58]} 22. Rge1 {[%emt 0:02:20]} Bh6+ {[%emt 0:01:40]} 23. Kb1 {[%emt 0:00:11]} Bd2 {[%emt 0:00:15]} 24. Rf1 {[%emt 0:09:17]} Bxc3 {[%emt 0:00:37]} 25. bxc3 {[%emt 0:00:09]} f4 {[%emt 0:00:27]} 26. Rd3 {[%emt 0:04:11]} Rxd3 {[%emt 0:00:42]} 27. cxd3 {[%emt 0:00:02]} Rd8 {[%emt 0:00:09]} 28. Kc2 {[%emt 0:00:30]} Kg7 {[%emt 0:00:25]} 29. Rd1 {[%emt 0:02:24]} c5 {[%emt 0:00:16]} 30. a4 {[%emt 0:01:06]} b6 {[%emt 0:05:45]} 31. Kb3 {[%emt 0:00:20]} Kf6 {[%emt 0:00:19]} 32. Kc4 {[%emt 0:00:22]} Rd7 {[%emt 0:11:11]} 33. Rd2 {[%emt 0:00:49]} Rd8 {[%emt 0:02:23]} 34. Rd1 {[%emt 0:00:05]} Rd7 {[%emt 0:00:03]} 35. Rd2 {[%emt 0:00:04]} Rd8 {[%emt 0:00:11]} 36. Kb5 {[%emt 0:00:34]} Rd7 {[%emt 0:00:33]} 37. a5 {[%emt 0:02:58]} bxa5 {[%emt 0:05:50]} 38. Kxc5 {[%emt 0:00:56]} Rc7+ {[%emt 0:00:09]} 39. Kd6 {[%emt 0:01:43]} Rxc3 {[%emt 0:00:57]} 40. d4 {[%emt 0:00:08]} exd4 {[%emt 0:00:26]} 41. Rxd4 {[%emt 0:01:59]} g5 {[%emt 0:02:25]} 42. e5+ {[%emt 0:00:29]} Kf7 {[%emt 0:00:09]} 43. e6+ {[%emt 0:00:41]} Ke8 {[%emt 0:00:51]} 44. Ke5 {[%emt 0:00:59]} Rc7 {[%emt 0:01:28]} 45. Kf6 {[%emt 0:00:20]} h6 {[%emt 0:00:16]} 46. h4 {[%emt 0:01:10]} Rb7 {[%emt 0:01:46]} 47. Rc4 {[%emt 0:00:25]} Kd8 {[%emt 0:00:04]} 48. Rd4+ {[%emt 0:00:08]} Ke8 {[%emt 0:00:05]} 49. hxg5 {[%emt 0:00:42]} hxg5 {[%emt 0:00:05]} 50. Rc4 {[%emt 0:00:20]} Kd8 {[%emt 0:00:07]} 51. Rd4+ {[%emt 0:00:03]} Ke8 {[%emt 0:00:24]} 52. Rd1 {[%emt 0:01:22]} a4 {[%emt 0:00:40]} 53. Rh1 {[%emt 0:00:32]} Kd8 {[%emt 0:01:14]} 54. Rh8+ {[%emt 0:00:11]} Kc7 {[%emt 0:00:06]} 55. Rh7+ {[%emt 0:00:12]} 1-0

[Event "36th Indian-ch U13 Open 2023"]
[Site "Secunderabad"]
[Date "2023.12.07"]
[Round "6.2"]
[White "Siddhanth Poonja"]
[Black "Adharsh K"]
[Result "1/2-1/2"]
[ECO "D00"]
[WhiteElo "1806"]
[BlackElo "1831"]
[Annotator "NA RC"]
[PlyCount "107"]
[EventDate "2023.12.04"]
[EventType "swiss"]
[EventCountry "IND"]
[SourceTitle "playchess.com"]
[Source "ChessBase"]
[SourceQuality "1"]
[TimeControl "5400+30"]

1. d4 {[%emt 0:00:22]} Nf6 {[%emt 0:00:37]} 2. Nc3 {[%emt 0:00:11]} d5 {[%emt 0:00:19]} 3. Bf4 {[%emt 0:00:12]} g6 {[%emt 0:01:01]} 4. e3 {[%emt 0:00:34]} Bg7 {[%emt 0:00:05]} 5. Nb5 {[%emt 0:00:17]} Na6 {[%emt 0:00:15]} 6. h3 {[%emt 0:00:07]} O-O {[%emt 0:01:14]} 7. Nf3 {[%emt 0:00:09]} c6 {[%emt 0:01:14]} 8. Nc3 {[%emt 0:00:07]} Nc7 {[%emt 0:00:08]} 9. Be2 {[%emt 0:06:02]} Nce8 {[%emt 0:09:05]} 10. O-O {[%emt 0:04:43]} Nd6 {[%emt 0:01:09]} 11. Be5 {[%emt 0:02:49]} Bf5 {[%emt 0:03:57]} 12. Bd3 {[%emt 0:05:37]} Nfe4 {[%emt 0:10:37]} 13. Bxe4 {[%emt 0:08:12]} Nxe4 {[%emt 0:03:41]} 14. Nxe4 {[%emt 0:03:29]} Bxe4 {[%emt 0:00:28]} 15. Bxg7 {[%emt 0:00:19]} Kxg7 $11 {[%emt 0:00:05]} 16. Nd2 {[%emt 0:08:13]} Bf5 {[%emt 0:00:04]} 17. c3 {[%emt 0:00:20]} a5 {[%emt 0:01:09]} 18. Re1 {[%emt 0:02:27]} a4 {[%emt 0:01:04]} 19. a3 {[%emt 0:00:11]} Qb6 {[%emt 0:00:28]} 20. Qc1 {[%emt 0:01:42]} Bd3 {[%emt 0:26:02]} 21. e4 {[%emt 0:09:05]} e6 {[%emt 0:06:39]} 22. Re3 {[%emt 0:05:43]} dxe4 {[%emt 0:01:00]} 23. Nxe4 {[%emt 0:00:08]} Bxe4 {[%emt 0:00:04]} 24. Rxe4 {[%emt 0:00:06]} Ra5 {[%emt 0:01:30]} 25. Qc2 {[%emt 0:07:19]} Rb5 {[%emt 0:01:35]} 26. Re2 {[%emt 0:00:09]} Rb3 {[%emt 0:00:19]} 27. Rae1 {[%emt 0:01:31]} Rd8 {[%emt 0:00:29]} 28. Rd2 {[%emt 0:00:51]} Kg8 {[%emt 0:02:02]} 29. Ree2 {[%emt 0:06:51]} Qa5 {[%emt 0:08:34]} 30. Qe4 {[%emt 0:02:28]} Qg5 {[%emt 0:01:28]} 31. Qe3 {[%emt 0:06:30]} Qxe3 {[%emt 0:00:46]} 32. Rxe3 {[%emt 0:01:29]} Kf8 {[%emt 0:00:51]} 33. Kf1 {[%emt 0:01:22]} Ke7 {[%emt 0:00:04]} 34. Ke2 {[%emt 0:00:19]} c5 {[%emt 0:00:37]} 35. d5 {[%emt 0:04:31]} Rb6 {[%emt 0:03:02]} 36. Re4 {[%emt 0:01:09]} Rbd6 {[%emt 0:00:20]} 37. Rxa4 {[%emt 0:00:30]} Rxd5 {[%emt 0:00:04]} 38. Rxd5 {[%emt 0:00:33]} Rxd5 {[%emt 0:00:24]} 39. Ra7 {[%emt 0:03:36]} Rd7 {[%emt 0:00:08]} 40. a4 {[%emt 0:00:06]} Kd6 {[%emt 0:00:25]} 41. Ra8 {[%emt 0:01:24]} Kc6 {[%emt 0:00:22]} 42. b3 {[%emt 0:01:02]} Kb6 {[%emt 0:01:56]} 43. Rc8 {[%emt 0:01:02]} Rd6 {[%emt 0:01:17]} 44. g4 {[%emt 0:01:03]} h5 {[%emt 0:09:10]} 45. gxh5 {[%emt 0:01:55]} gxh5 {[%emt 0:00:05]} 46. a5+ {[%emt 0:00:14]} Kb5 {[%emt 0:01:56]} 47. Rc7 {[%emt 0:00:02]} f5 {[%emt 0:00:32]} 48. Rxb7+ {[%emt 0:00:30]} Kxa5 {[%emt 0:00:06]} 49. Ra7+ {[%emt 0:00:43]} Kb5 {[%emt 0:00:13]} 50. Rb7+ {[%emt 0:01:53]} Ka6 {[%emt 0:02:23]} 51. Rc7 {[%emt 0:00:28]} Kb5 {[%emt 0:00:59]} 52. Rb7+ {[%emt 0:00:22]} Ka6 {[%emt 0:00:09]} 53. Rc7 {[%emt 0:01:53]} Kb5 {[%emt 0:00:08]} 54. Rb7+ {[%emt 0:04:40]} 1/2-1/2

[Event "36th Indian-ch U13 Open 2023"]
[Site "Secunderabad"]
[Date "2023.12.07"]
[Round "6.3"]
[White "Shreyash Singh"]
[Black "Vivaan Vijay Saraogi"]
[Result "0-1"]
[ECO "B94"]
[WhiteElo "1637"]
[BlackElo "1982"]
[Annotator "RC"]
[PlyCount "130"]
[EventDate "2023.12.04"]
[EventType "swiss"]
[EventCountry "IND"]
[SourceTitle "playchess.com"]
[Source "ChessBase"]
[SourceQuality "1"]
[TimeControl "5400+30"]

1. e4 {[%emt 0:00:03]} c5 {[%emt 0:00:08]} 2. Nf3 {[%emt 0:00:05]} d6 {[%emt 0:00:04]} 3. d4 {[%emt 0:00:04]} cxd4 {[%emt 0:00:04]} 4. Nxd4 {[%emt 0:00:06]} Nf6 {[%emt 0:00:07]} 5. Nc3 {[%emt 0:00:03]} a6 {[%emt 0:00:08]} 6. Bg5 {[%emt 0:00:04]} Nbd7 {[%emt 0:00:05]} 7. Bc4 {[%emt 0:00:05]} Qb6 {[%emt 0:00:10]} 8. Bb3 {[%emt 0:00:05]} e6 {[%emt 0:00:35]} 9. Bxf6 {[%emt 0:00:05]} Nxf6 {[%emt 0:00:41]} 10. Qd2 {[%emt 0:00:05]} Be7 {[%emt 0:04:00]} 11. O-O-O {[%emt 0:00:14]} O-O {[%emt 0:20:06]} 12. f4 {[%emt 0:00:42]} Qc7 {[%emt 0:00:10]} 13. f5 {[%emt 0:05:18]} e5 {[%emt 0:01:35]} 14. Nde2 {[%emt 0:03:10]} b5 {[%emt 0:14:24]} 15. Nd5 {[%emt 0:00:55]} Nxd5 {[%emt 0:00:08]} 16. Bxd5 {[%emt 0:00:06]} Rb8 {[%emt 0:00:18]} 17. g4 {[%emt 0:01:50]} Qd8 {[%emt 0:02:44]} 18. Kb1 {[%emt 0:00:40]} b4 {[%emt 0:02:38]} 19. Ng1 {[%emt 0:09:40]} Bb7 {[%emt 0:04:39]} 20. Bxb7 {[%emt 0:00:54]} Rxb7 {[%emt 0:01:31]} 21. h4 {[%emt 0:00:20]} Rb5 {[%emt 0:00:36]} 22. g5 {[%emt 0:00:55]} f6 {[%emt 0:00:15]} 23. Nf3 {[%emt 0:01:34]} d5 {[%emt 0:05:18]} 24. exd5 {[%emt 0:01:56]} e4 {[%emt 0:00:10]} 25. gxf6 {[%emt 0:02:18]} exf3 {[%emt 0:20:19]} 26. fxe7 {[%emt 0:00:35]} Qxe7 {[%emt 0:00:02]} 27. Qf4 {[%emt 0:10:01]} Qd7 {[%emt 0:02:05]} 28. Qxf3 {[%emt 0:00:18]} Rxf5 {[%emt 0:00:11]} 29. Qb3 {[%emt 0:01:00]} Rfxd5 {[%emt 0:06:10]} 30. Rhe1 {[%emt 0:01:46]} Qf7 {[%emt 0:00:45]} 31. Rxd5 {[%emt 0:00:34]} Qxd5 {[%emt 0:00:30]} 32. Qe3 {[%emt 0:03:16]} Rb8 {[%emt 0:01:23]} 33. Qe6+ {[%emt 0:05:23]} Qxe6 {[%emt 0:00:06]} 34. Rxe6 {[%emt 0:00:03]} Rf8 {[%emt 0:03:14]} 35. Kc1 {[%emt 0:03:33]} Rf4 {[%emt 0:02:39]} 36. h5 {[%emt 0:00:09]} Rf5 {[%emt 0:05:52]} 37. h6 {[%emt 0:00:16]} gxh6 {[%emt 0:00:38]} 38. Rxh6 {[%emt 0:00:06]} a5 {[%emt 0:00:01]} 39. Kd2 {[%emt 0:00:13]} Kg7 {[%emt 0:00:04]} 40. Rh4 {[%emt 0:00:12]} h5 {[%emt 0:00:51]} 41. c4 {[%emt 0:00:50]} bxc3+ {[%emt 0:01:34]} 42. Kxc3 {[%emt 0:01:01]} Kg6 {[%emt 0:00:41]} 43. b4 {[%emt 0:00:29]} Kg5 {[%emt 0:00:02]} 44. Rh2 {[%emt 0:00:15]} Rf3+ {[%emt 0:00:05]} 45. Kd4 {[%emt 0:03:09]} axb4 {[%emt 0:00:28]} 46. Ke5 {[%emt 0:00:20]} Re3+ {[%emt 0:00:50]} 47. Kd4 {[%emt 0:00:06]} Rg3 {[%emt 0:00:11]} 48. Rb2 {[%emt 0:00:26]} h4 {[%emt 0:00:15]} 49. Rh2 {[%emt 0:02:20]} Rg4+ {[%emt 0:03:34]} 50. Ke3 {[%emt 0:00:06]} Rg3+ {[%emt 0:01:00]} 51. Kf2 {[%emt 0:00:05]} Rc3 {[%emt 0:01:13]} 52. Ke1 {[%emt 0:00:51]} Rc1+ {[%emt 0:00:40]} 53. Kd2 {[%emt 0:00:04]} Rf1 {[%emt 0:00:05]} 54. Ke2 {[%emt 0:00:24]} Rf4 {[%emt 0:00:52]} 55. Rg2+ {[%emt 0:00:12]} Rg4 {[%emt 0:00:30]} 56. Rh2 {[%emt 0:00:04]} Rg3 {[%emt 0:00:14]} 57. Kf2 {[%emt 0:00:13]} Kg4 {[%emt 0:00:40]} 58. Rh1 {[%emt 0:00:05]} Rf3+ {[%emt 0:00:24]} 59. Ke2 {[%emt 0:00:23]} Ra3 {[%emt 0:00:34]} 60. Ra1 {[%emt 0:00:30]} Kg3 {[%emt 0:00:31]} 61. Kf1 {[%emt 0:00:45]} b3 {[%emt 0:00:13]} 62. Rb1 {[%emt 0:00:06]} bxa2 {[%emt 0:00:09]} 63. Ra1 {[%emt 0:00:03]} h3 {[%emt 0:00:05]} 64. Kg1 {[%emt 0:00:03]} Rb3 {[%emt 0:00:04]} 65. Rxa2 {[%emt 0:00:55]} Rb1# {[%emt 0:00:06]} 0-1

[Event "36th Indian-ch U13 Open 2023"]
[Site "Secunderabad"]
[Date "2023.12.07"]
[Round "6.5"]
[White "Sharnarthi Viresh"]
[Black "Challa Saharsha"]
[Result "1-0"]
[ECO "C44"]
[WhiteElo "1850"]
[BlackElo "1674"]
[Annotator "NA RC"]
[PlyCount "83"]
[EventDate "2023.12.04"]
[EventType "swiss"]
[EventCountry "IND"]
[SourceTitle "playchess.com"]
[Source "ChessBase"]
[SourceQuality "1"]
[TimeControl "5400+30"]

1. d4 {[%emt 0:00:02]} d5 {[%emt 0:01:00]} 2. c4 {[%emt 0:00:08]} Nc6 {[%emt 0:03:21]} 3. cxd5 {[%emt 0:03:42]} Qxd5 {[%emt 0:00:18]} 4. Nf3 {[%emt 0:00:06]} e5 {[%emt 0:00:58]} 5. Nc3 {[%emt 0:18:07]} Bb4 {[%emt 0:00:49]} 6. e3 {[%emt 0:08:24]} exd4 {[%emt 0:01:05]} 7. exd4 {[%emt 0:00:19]} Nf6 {[%emt 0:02:46]} 8. Bd3 {[%emt 0:11:15]} O-O {[%emt 0:11:55]} 9. O-O {[%emt 0:01:48]} Bxc3 {[%emt 0:01:16]} 10. bxc3 $11 {[%emt 0:00:02]} Re8 {[%emt 0:07:29]} 11. h3 {[%emt 0:00:36]} Bf5 {[%emt 0:04:50]} 12. c4 {[%emt 0:03:03]} Qd7 {[%emt 0:00:03]} 13. d5 {[%emt 0:00:05]} Bxd3 {[%emt 0:18:12]} 14. Qxd3 {[%emt 0:00:25]} Ne4 {[%emt 0:01:47]} 15. Bb2 {[%emt 0:00:42]} f5 {[%emt 0:00:08]} 16. Rad1 {[%emt 0:17:24]} Rad8 {[%emt 0:11:15]} 17. Rfe1 {[%emt 0:13:36]} Qf7 {[%emt 0:09:23]} 18. Qa3 {[%emt 0:01:35]} Ne7 {[%emt 0:02:24]} 19. Ne5 {[%emt 0:03:29]} Qh5 {[%emt 0:01:37]} 20. f3 {[%emt 0:02:57]} Nf6 {[%emt 0:01:50]} 21. Qxa7 {[%emt 0:02:41]} Ra8 {[%emt 0:00:58]} 22. Qd4 {[%emt 0:00:22]} Rxa2 {[%emt 0:00:35]} 23. d6 {[%emt 0:00:47]} cxd6 {[%emt 0:00:42]} 24. Qxd6 {[%emt 0:00:02]} Rxb2 {[%emt 0:02:00]} 25. Qe6+ {[%emt 0:00:55]} Kf8 {[%emt 0:01:34]} 26. g4 {[%emt 0:00:54]} fxg4 {[%emt 0:04:16]} 27. fxg4 {[%emt 0:00:06]} Rb6 {[%emt 0:03:02]} 28. Qxb6 {[%emt 0:01:35]} Qxh3 {[%emt 0:00:02]} 29. Re3 {[%emt 0:06:47]} Qh6 {[%emt 0:00:25]} 30. Rde1 {[%emt 0:01:45]} Nxg4 {[%emt 0:04:42]} 31. Rf3+ {[%emt 0:00:01]} Kg8 {[%emt 0:00:52]} 32. Qxh6 {[%emt 0:00:02]} Nxh6 {[%emt 0:00:20]} 33. Nd7 {[%emt 0:00:01]} g6 {[%emt 0:04:12]} 34. Nf6+ {[%emt 0:00:26]} Kf7 {[%emt 0:00:01]} 35. Nxe8+ {[%emt 0:00:07]} Kxe8 {[%emt 0:00:01]} 36. Rb3 {[%emt 0:00:12]} Nhf5 {[%emt 0:00:12]} 37. Rxb7 {[%emt 0:00:10]} Kd8 {[%emt 0:00:05]} 38. c5 {[%emt 0:00:38]} h5 {[%emt 0:00:08]} 39. Re6 {[%emt 0:02:22]} h4 {[%emt 0:00:21]} 40. c6 {[%emt 0:00:07]} g5 {[%emt 0:01:34]} 41. Rbxe7 {[%emt 0:00:09]} Nxe7 {[%emt 0:00:08]} 42. c7+ {[%emt 0:00:02]} 1-0

[Event "36th Indian-ch U13 Open 2023"]
[Site "Secunderabad"]
[Date "2023.12.07"]
[Round "6.6"]
[White "Aarav Saish Amonkar"]
[Black "Reyan"]
[Result "1-0"]
[ECO "A45"]
[WhiteElo "1624"]
[BlackElo "1842"]
[Annotator "NA RC"]
[PlyCount "67"]
[EventDate "2023.12.04"]
[EventType "swiss"]
[EventCountry "IND"]
[SourceTitle "playchess.com"]
[Source "ChessBase"]
[SourceQuality "1"]
[TimeControl "5400+30"]

1. d4 {[%emt 0:02:02]} Nf6 {[%emt 0:00:08]} 2. Bg5 {[%emt 0:00:11]} d5 {[%emt 0:00:09]} 3. Nd2 {[%emt 0:00:18]} g6 {[%emt 0:01:36]} 4. Bxf6 {[%emt 0:02:24]} exf6 {[%emt 0:00:03]} 5. e3 {[%emt 0:00:13]} Bg7 {[%emt 0:00:27]} 6. g3 {[%emt 0:00:15]} O-O {[%emt 0:00:20]} 7. Bg2 {[%emt 0:00:22]} c6 {[%emt 0:00:19]} 8. Ne2 {[%emt 0:01:06]} f5 {[%emt 0:00:34]} 9. O-O {[%emt 0:01:03]} Nd7 {[%emt 0:00:07]} 10. c4 {[%emt 0:01:09]} Nf6 {[%emt 0:01:06] 10...Nf6 is better than 10...dxc4.} 11. Rc1 {[%emt 0:07:53] [#]} Bh6 $146 {[%emt 0:08:59]} ({Predecessor:} 11... Ne4 12. Qc2 Be6 13. Nf4 Rc8 14. Rfd1 Qe7 15. a3 g5 16. Nxe6 fxe6 17. b4 Nf6 {1-0 Runcan,D (1896)-Liu,Z (1542) Auckland Trusts op 45th 2023 (1)}) 12. Nc3 {[%emt 0:04:52]} Be6 {[%emt 0:05:32]} 13. cxd5 {[%emt 0:03:19]} Nxd5 {[%emt 0:00:23]} 14. Nxd5 {[%emt 0:04:22]} Bxd5 {[%emt 0:00:52]} 15. Bxd5 {[%emt 0:00:26]} Qxd5 {[%emt 0:00:07]} 16. Qb3 {[%emt 0:00:44]} Qd7 {[%emt 0:03:34]} 17. Nf3 {[%emt 0:03:32]} Bg7 {[%emt 0:02:09]} 18. Rfd1 {[%emt 0:02:35]} Rad8 {[%emt 0:01:46]} 19. Kg2 $11 {[%emt 0:03:48]} Rfe8 {[%emt 0:08:37]} 20. h4 {[%emt 0:06:48]} Qe7 {[%emt 0:02:14]} 21. d5 {[%emt 0:14:17]} c5 {[%emt 0:05:02]} 22. Qb5 {[%emt 0:03:39]} b6 {[%emt 0:01:11]} 23. b4 {[%emt 0:03:15]} cxb4 {[%emt 0:05:45]} 24. d6 {[%emt 0:02:16]} Qd7 {[%emt 0:00:42]} 25. Qxb4 {[%emt 0:01:58]} Rc8 {[%emt 0:00:38]} 26. Nd4 {[%emt 0:04:55]} Bf8 {[%emt 0:07:10]} 27. Nb5 {[%emt 0:01:08]} a5 {[%emt 0:18:34]} 28. Qb3 {[%emt 0:01:59]} Rxc1 {[%emt 0:20:42]} 29. Rxc1 {[%emt 0:00:09]} Re5 {[%emt 0:01:48]} 30. Rc7 {[%emt 0:01:23]} Qe6 {[%emt 0:01:18]} 31. Qxe6 {[%emt 0:00:35]} fxe6 {[%emt 0:00:19]} 32. d7 {[%emt 0:00:13]} Rd5 {[%emt 0:01:04]} 33. Nd4 {[%emt 0:01:17]} e5 {[%emt 0:01:18]} 34. Nc6 {[%emt 0:00:22]} 1-0